fUST/lending_fUST_20250701
["ID","MTS","AMOUNT","RATE_DAILY","PERIOD"]
[368855490,1751377847044,-846.08,0.00019459,2]
[368855492,1751377847054,-367.72,0.00019459,2]
[368855493,1751377847064,-460.0,0.00019459,2]
[368855495,1751377847073,-460.0,0.00019459,2]
[368855497,1751377847083,-460.0,0.00019459,2]
[368855499,1751377847094,-460.0,0.0001946,2]
[368855501,1751377847104,-562.08,0.0001946,2]
[368855503,1751377847113,-390.61,0.0001946,2]
[368855504,1751377847123,-460.0,0.00019461,2]
[368855506,1751377847132,-310.10689065,0.00019556,2]
[368855508,1751377847142,-460.0,0.00019556,2]
[368855510,1751377847152,-460.0,0.00019556,2]
[368855512,1751377847162,-460.0,0.00019556,2]
[368855514,1751377847171,-1068.93,0.00019556,2]
[368855516,1751377847181,-2500.0,0.00019564,2]
[368855518,1751377847191,-1001.7236066,0.00019613,2]
[368855520,1751377847204,-460.0,0.00019729,2]
[368855522,1751377847214,-641.94,0.00019729,2]
[368855523,1751377847224,-908.06,0.00019729,2]
[368855525,1751377847234,-460.0,0.0001973,2]
[368855527,1751377847246,-808.9,0.0001973,2]
[368855529,1751377847256,-574.63,0.0001973,2]
[368855531,1751377847266,-1922.78,0.0001973,2]
[368855533,1751377847277,-460.0,0.0001973,2]
[368855535,1751377847287,-460.0,0.0001973,2]
[368855536,1751377847296,-460.0,0.0001973,2]
[368855538,1751377847306,-460.0,0.0001973,2]
[368855540,1751377847315,-460.0,0.00019731,2]
[368855542,1751377847327,-460.0,0.00019731,2]
[368855544,1751377847337,-582.0,0.00019731,2]
[368855546,1751377847346,-460.0,0.00019733,2]
[368855548,1751377847356,-846.08,0.00019733,2]
[368855549,1751377847367,-460.0,0.00019733,2]
[368855551,1751377847378,-460.0,0.00019733,2]
[368855553,1751377847388,-460.0,0.00019733,2]
[368855555,1751377847398,-460.0,0.00019734,2]
[368855557,1751377847407,-460.0,0.00019735,2]
[368855559,1751377847417,-460.0,0.0001983,2]
[368855561,1751377847427,-460.0,0.0001983,2]
[368855563,1751377847437,-460.0,0.0001983,2]
[368855565,1751377847447,-1068.93,0.0001983,2]
[368855567,1751377847459,-1000.0,0.000199,2]
[368855568,1751377847469,-1000.0,0.000199,2]
[368855570,1751377847478,-1000.0,0.000199,2]
[368855572,1751377847488,-460.0,0.00020003,2]
[368855574,1751377847497,-641.94,0.00020003,2]
[368855576,1751377847507,-908.06,0.00020003,2]
[368855578,1751377847517,-279.46,0.00020004,2]
[368855579,1751377847527,-808.9,0.00020004,2]
[368855581,1751377847538,-574.63,0.00020004,2]
[368855583,1751377847548,-1922.78,0.00020004,2]
[368855585,1751377847557,-460.0,0.00020004,2]
[368855587,1751377847567,-205.19,0.00020004,2]
[368855588,1751377847580,-460.0,0.00020004,2]
[368855590,1751377847591,-460.0,0.00020004,2]
[368855592,1751377847601,-460.0,0.00020005,2]
[368855594,1751377847610,-460.0,0.00020005,2]
[368855596,1751377847621,-460.0,0.00020007,2]
[368855598,1751377847630,-846.08,0.00020007,2]
[368855600,1751377847640,-460.0,0.00020007,2]
[368855602,1751377847650,-460.0,0.00020007,2]
[368855603,1751377847660,-561.04,0.00020007,2]
[368855605,1751377847669,-460.0,0.00020008,2]
[368855607,1751377847679,-460.0,0.00020009,2]
[368855609,1751377847690,-460.0,0.00020104,2]
[368855611,1751377847700,-460.0,0.00020104,2]
[368855613,1751377847710,-460.0,0.00020104,2]
[368855615,1751377847721,-1068.93,0.00020104,2]
[368855617,1751377847730,-356.058894,0.00020187,2]
[368855618,1751377847740,-215.0738,0.00020189,2]
[368855620,1751377847750,-460.0,0.00020277,2]
[368855622,1751377847760,-641.94,0.00020277,2]
[368855624,1751377847769,-908.06,0.00020277,2]
[368855626,1751377847779,-808.9,0.00020278,2]
[368855628,1751377847790,-574.63,0.00020278,2]
[368855630,1751377847800,-1922.78,0.00020278,2]
[368855632,1751377847810,-460.0,0.00020278,2]
[368855634,1751377847819,-460.0,0.00020278,2]
[368855636,1751377847832,-460.0,0.00020278,2]
[368855638,1751377847842,-460.0,0.00020279,2]
[368855639,1751377847852,-460.0,0.00020279,2]
[368855641,1751377847862,-460.0,0.00020281,2]
[368855643,1751377847872,-846.08,0.00020281,2]
[368855645,1751377847882,-460.0,0.00020281,2]
[368855647,1751377847892,-460.0,0.00020281,2]
[368855649,1751377847903,-460.0,0.00020282,2]
[368855651,1751377847912,-471.81,0.00020283,2]
[368855653,1751377847922,-500.0,0.00020292,2]
[368855655,1751377847932,-460.0,0.00020378,2]
[368855657,1751377847942,-460.0,0.00020378,2]
[368855658,1751377847952,-460.0,0.00020378,2]
[368855660,1751377847962,-1068.93,0.00020378,2]
[368855662,1751377847971,-500.0,0.00020448,2]
[368855664,1751377847981,-563.71744148,0.00020448,2]
[368855666,1751377847992,-460.0,0.00020551,2]
[368855668,1751377848002,-641.94,0.00020551,2]
[368855670,1751377848013,-908.06,0.00020551,2]
[368855672,1751377848024,-808.9,0.00020552,2]
[368855674,1751377848035,-574.63,0.00020552,2]
[368855692,1751377848239,-1922.78,0.00020552,2]
[368855694,1751377848250,-460.0,0.00020552,2]
[368855696,1751377848260,-441.58,0.00020552,2]
[368855698,1751377848273,-460.0,0.00020552,2]
[368855700,1751377848282,-460.0,0.00020553,2]
[368855702,1751377848292,-460.0,0.00020553,2]
[368855704,1751377848302,-460.0,0.00020555,2]
[368855706,1751377848312,-846.08,0.00020555,2]
[368855708,1751377848322,-460.0,0.00020555,2]
[368855710,1751377848333,-460.0,0.00020555,2]
[368855711,1751377848343,-460.0,0.00020556,2]
[368855713,1751377848352,-1098.24,0.000206,2]
[368855715,1751377848362,-1343.47,0.000206,2]
[368855717,1751377848371,-937.548,0.00020619,2]
[368855719,1751377848381,-177.915,0.00020619,2]
[368855721,1751377848390,-460.0,0.00020652,2]
[368855723,1751377848400,-444.91,0.00020652,2]
[368855725,1751377848410,-460.0,0.00020652,2]
[368855726,1751377848419,-1068.93,0.00020652,2]
[368855728,1751377848429,-460.0,0.00020825,2]
[368855730,1751377848439,-641.94,0.00020825,2]
[368855732,1751377848448,-908.06,0.00020825,2]
[368855734,1751377848458,-808.9,0.00020826,2]
[368855736,1751377848469,-574.63,0.00020826,2]
[368855738,1751377848479,-1922.78,0.00020826,2]
[368855739,1751377848488,-460.0,0.00020826,2]
[368855741,1751377848498,-460.0,0.00020826,2]
[368855743,1751377848509,-460.0,0.00020827,2]
[368855745,1751377848519,-460.0,0.00020827,2]
[368855747,1751377848528,-460.0,0.00020829,2]
[368855749,1751377848538,-846.08,0.00020829,2]
[368855751,1751377848549,-460.0,0.00020829,2]
[368855753,1751377848559,-460.0,0.00020829,2]
[368855755,1751377848569,-460.0,0.0002083,2]
[368855757,1751377848579,-460.0,0.00020926,2]
[368855759,1751377848589,-460.0,0.00020926,2]
[368855760,1751377848599,-1068.93,0.00020926,2]
[368855762,1751377848609,-460.0,0.00021099,2]
[368855764,1751377848619,-641.94,0.00021099,2]
[368855766,1751377848629,-908.06,0.00021099,2]
[368855768,1751377848638,-808.9,0.000211,2]
[368855770,1751377848648,-574.63,0.000211,2]
[368855772,1751377848658,-1922.78,0.000211,2]
[368855773,1751377848668,-460.0,0.000211,2]
[368855775,1751377848678,-460.0,0.000211,2]
[368855777,1751377848688,-460.0,0.00021101,2]
[368855779,1751377848707,-460.0,0.00021101,2]
[368855781,1751377848722,-460.0,0.00021103,2]
[368855783,1751377848732,-846.08,0.00021103,2]
[368855785,1751377848742,-166.16,0.00021103,2]
[368855787,1751377848752,-460.0,0.00021103,2]
[368855789,1751377848762,-460.0,0.00021104,2]
[368855790,1751377848773,-460.0,0.000212,2]
[368855792,1751377848784,-460.0,0.000212,2]
[368855794,1751377848795,-1068.93,0.000212,2]
[368855796,1751377848806,-460.0,0.00021373,2]
[368855798,1751377848815,-641.94,0.00021373,2]
[368855800,1751377848827,-908.06,0.00021373,2]
[368855802,1751377848839,-808.9,0.00021374,2]
[368855804,1751377848851,-574.63,0.00021374,2]
[368855806,1751377848868,-1922.78,0.00021374,2]
[368855808,1751377848879,-460.0,0.00021374,2]
[368855810,1751377848889,-460.0,0.00021374,2]
[368855812,1751377848899,-460.0,0.00021375,2]
[368855813,1751377848910,-460.0,0.00021375,2]
[368855815,1751377848920,-460.0,0.00021377,2]
[368855817,1751377848931,-846.08,0.00021377,2]
[368855819,1751377848941,-511.94578704,0.00021377,2]
[368855821,1751377848951,-460.0,0.00021378,2]
[368855823,1751377848962,-460.0,0.00021473,2]
[368855825,1751377848972,-460.0,0.00021473,2]
[368855827,1751377848983,-1068.93,0.00021473,2]
[368855829,1751377848992,-223.0315306,0.00021558,2]
[368855831,1751377849002,-460.0,0.00021647,2]
[368855832,1751377849012,-641.94,0.00021647,2]
[368855834,1751377849022,-908.06,0.00021647,2]
[368855836,1751377849032,-808.9,0.00021648,2]
[368855838,1751377849042,-574.63,0.00021648,2]
[368855840,1751377849052,-1922.78,0.00021648,2]
[368855842,1751377849070,-460.0,0.00021648,2]
[368855844,1751377849086,-460.0,0.00021648,2]
[368855846,1751377849096,-348.78,0.00021649,2]
[368855848,1751377849106,-460.0,0.00021651,2]
[368855849,1751377849116,-846.08,0.00021651,2]
[368855851,1751377849127,-460.0,0.00021652,2]
[368855853,1751377849137,-460.0,0.00021747,2]
[368855855,1751377849147,-460.0,0.00021747,2]
[368855857,1751377849158,-1068.93,0.00021747,2]
[368855859,1751377849167,-460.0,0.00021921,2]
[368855861,1751377849177,-641.94,0.00021921,2]
[368855863,1751377849186,-908.06,0.00021921,2]
[368855864,1751377849196,-808.9,0.00021922,2]
[368855866,1751377849207,-574.63,0.00021922,2]
[368855868,1751377849217,-1922.78,0.00021922,2]
[368855870,1751377849226,-460.0,0.00021922,2]
[368855872,1751377849237,-460.0,0.00021922,2]
[368855874,1751377849248,-460.0,0.00021925,2]
[368855876,1751377849258,-846.08,0.00021925,2]
[368855878,1751377849268,-460.0,0.00021926,2]
[368855880,1751377849278,-150.0,0.00021973,2]
[368855881,1751377849288,-150.0,0.00021973,2]
[368855883,1751377849298,-3190.44,0.00022,7]
[368855885,1751377849309,-154.4,0.00022,5]
[368855887,1751377849320,-27600.64,0.00022,2]
[368855889,1751377849332,-30419.73,0.00022,7]
[368855891,1751377849342,-150.0,0.00022,2]
[368855893,1751377849352,-178.0,0.00022,2]
[368855895,1751377849362,-168.0,0.00022,2]
[368855897,1751377849372,-213.87551669,0.00022,7]
[368855899,1751377849382,-847.53272281,0.00022,7]
[368855900,1751377849391,-460.0,0.00022021,2]
[368855902,1751377849400,-460.0,0.00022021,2]
[368855904,1751377849410,-1068.93,0.00022021,2]
[368855906,1751377849420,-460.0,0.00022195,2]
[368855908,1751377849430,-641.94,0.00022195,2]
[368855910,1751377849439,-908.06,0.00022195,2]
[368855912,1751377849448,-808.9,0.00022196,2]
[368855914,1751377849459,-574.63,0.00022196,2]
[368855916,1751377849468,-1922.78,0.00022196,2]
[368855917,1751377849478,-460.0,0.00022196,2]
[368855919,1751377849487,-460.0,0.00022196,2]
[368855921,1751377849497,-152.54,0.00022199,2]
[368855923,1751377849507,-846.08,0.00022199,2]
[368855925,1751377849517,-237.1,0.000222,2]
[368855927,1751377849527,-460.0,0.00022295,2]
[368855929,1751377849537,-460.0,0.00022295,2]
[368855931,1751377849547,-1068.93,0.00022295,2]
[368855932,1751377849556,-1098.24,0.000224,7]
[368855934,1751377849565,-182.6,0.00022469,2]
[368855936,1751377849575,-641.94,0.00022469,2]
[368855938,1751377849584,-908.06,0.00022469,2]
[368855940,1751377849593,-808.9,0.0002247,2]
[368855942,1751377849603,-574.63,0.0002247,2]
[368855943,1751377849612,-1922.78,0.0002247,2]
[368855945,1751377849622,-460.0,0.0002247,2]
[368855947,1751377849632,-460.0,0.0002247,2]
[368855949,1751377849641,-846.08,0.00022473,2]
[368855951,1751377849651,-179.65864857,0.00022476,2]
[368855953,1751377849660,-500.0,0.00022484,2]
[368855954,1751377849670,-200.0,0.00022521,2]
[368855956,1751377849679,-300.0,0.00022521,2]
[368855958,1751377849689,-460.0,0.00022569,2]
[368855960,1751377849699,-376.16,0.00022569,2]
[368855962,1751377849710,-1068.93,0.00022569,2]
[368855963,1751377849720,-809.0,0.00022596,2]
[368855964,1751377849729,-315.509053,0.00022603,2]
[368855965,1751377849739,-641.94,0.00022743,2]
[368855966,1751377849750,-908.06,0.00022743,2]
[368855967,1751377849759,-808.9,0.00022744,2]
[368855968,1751377849769,-574.63,0.00022744,2]
[368855969,1751377849780,-1922.78,0.00022744,2]
[368855970,1751377849789,-460.0,0.00022744,2]
[368855971,1751377849800,-460.0,0.00022744,2]
[368855972,1751377849809,-846.08,0.00022747,2]
[368855973,1751377849819,-500.0,0.00022754,2]
[368855974,1751377849831,-500.0,0.00022804,2]
[368855975,1751377849840,-460.0,0.00022843,2]
[368855976,1751377849851,-1068.93,0.00022843,2]
[368855977,1751377849860,-973.075,0.00022845,2]
[368855978,1751377849870,-406.0,0.00022845,2]
[368855979,1751377849880,-654.0,0.00022845,2]
[368855980,1751377849890,-2151.0,0.00022845,2]
[368855981,1751377849900,-809.0,0.00022862,2]
[368855982,1751377849910,-809.0,0.00022901,2]
[368855983,1751377849920,-231.28369723,0.00022927,2]
[368855984,1751377849930,-500.0,0.00022961,2]
[368855985,1751377849940,-641.94,0.00023016,2]
[368855986,1751377849950,-808.9,0.00023018,2]
[368855987,1751377849959,-574.63,0.00023018,2]
[368855988,1751377849969,-1922.78,0.00023018,2]
[368855989,1751377849980,-460.0,0.00023018,2]
[368855990,1751377849990,-460.0,0.00023018,2]
[368855991,1751377850000,-846.08,0.00023021,2]
[368855992,1751377850011,-809.0,0.00023022,2]
[368855993,1751377850021,-450.0,0.00023068,2]
[368855994,1751377850031,-244.81,0.00023117,2]
[368855995,1751377850043,-1068.93,0.00023117,2]
[368855996,1751377850054,-27600.64,0.000232,2]
[368855997,1751377850065,-30419.73,0.000232,7]
[368855998,1751377850076,-641.94,0.0002329,2]
[368855999,1751377850089,-808.9,0.00023292,2]
[368856000,1751377850099,-574.63,0.00023292,2]
[368856001,1751377850110,-1922.78,0.00023292,2]
[368856002,1751377850120,-498.9,0.00023292,2]
[368856003,1751377850129,-341.59147413,0.00023292,2]
[368856004,1751377850140,-846.08,0.00023295,2]
[368856005,1751377850150,-500.0,0.00023297,2]
[368856006,1751377850160,-500.0,0.00023343,2]
[368856007,1751377850170,-500.0,0.00023384,2]
[368856008,1751377850179,-809.0,0.00023388,2]
[368856009,1751377850190,-1068.93,0.00023391,2]
[368856010,1751377850202,-809.0,0.00023393,2]
[368856011,1751377850212,-3190.44,0.000234,7]
[368856012,1751377850221,-2200.0,0.00023402,2]
[368856013,1751377850233,-809.0,0.00023481,2]
[368856014,1751377850242,-642.04,0.00023564,2]
[368856016,1751377850252,-809.12198617,0.00023566,2]
[368856017,1751377850262,-574.74,0.00023566,2]
[368856019,1751377850273,-1922.92,0.00023566,2]
[368856020,1751377850282,-846.20611488,0.00023569,2]
[368856022,1751377850291,-200.0,0.0002357,8]
[368856023,1751377850302,-300.0,0.00023616,2]
[368856025,1751377850312,-1069.08660982,0.00023665,2]
[368856027,1751377850322,-454.7784219,0.000239,2]
[368856029,1751377850334,-809.0,0.00023995,2]
[368856031,1751377850343,-215.01728679,0.00024,7]
[368856033,1751377850353,-160.0,0.00024,7]
[368856035,1751377850362,-160.0,0.00024,7]
[368856037,1751377850371,-160.0,0.00024,7]
[368856039,1751377850381,-837.20943635,0.00024,7]
[368856041,1751377850391,-524.61914904,0.00024,3]
[368856043,1751377850400,-524.61914904,0.00024,3]
[368856045,1751377850409,-230.32585361,0.00024,7]
[368856047,1751377850418,-500.0,0.00024009,2]
[368856049,1751377850428,-600.0,0.00024207,2]
[368856051,1751377850437,-500.0,0.0002422,2]
[368856053,1751377850448,-800.0,0.00024241,2]
[368856055,1751377850457,-809.0,0.0002428,2]
[368856057,1751377850466,-239.84119403,0.00024296,2]
[368856059,1751377850476,-27600.64,0.000245,2]
[368856061,1751377850485,-30419.73,0.000245,7]
[368856063,1751377850495,-215.01728679,0.000245,7]
[368856064,1751377850504,-160.0,0.000245,7]
[368856067,1751377850514,-160.0,0.000245,7]
[368856068,1751377850523,-837.20943635,0.000245,7]
[368856071,1751377850533,-230.32585361,0.000245,7]
[368856073,1751377850542,-809.0,0.00024556,2]
[368856074,1751377850552,-809.0,0.00024594,2]
[368856077,1751377850561,-809.0,0.00024634,2]
[368856078,1751377850571,-200.0,0.00024658,15]
[368856081,1751377850581,-475.94548763,0.00024658,2]
[368856082,1751377850591,-380.0,0.00024658,2]
[368856084,1751377850600,-500.0,0.00024676,7]
[368856086,1751377850610,-1266.708497,0.00024711,4]
[368856088,1751377850619,-2000.0,0.000248,2]
[368856090,1751377850629,-2000.0,0.000248,2]
[368856092,1751377850638,-28935.0,0.000248,7]
[368856098,1751377850685,-73626.6333786,0.000248,2]
[368856100,1751377850695,-169.0446336,0.00024806,2]
[368856102,1751377850706,-1098.24,0.000249,7]
[368856104,1751377850716,-3190.44,0.000249,7]
[368856106,1751377850726,-642870.582285,0.000249,2]
[368856108,1751377850736,-163.0,0.00025,7]
[368856110,1751377850747,-524.61914904,0.00025,10]
[368856112,1751377850758,-2804.08914622,0.00025023,2]
[368856114,1751377850768,-605.03205155,0.00025026,14]
[368856116,1751377850777,-169.04463359,0.00025045,2]
[368856118,1751377850787,-33619.45819719,0.00025052,2]
[368856120,1751377850796,-2000.0,0.000251,2]
[368856122,1751377850806,-250.0,0.000251,7]
[368856124,1751377850815,-250.0,0.000251,7]
[368856126,1751377850825,-250.0,0.000251,7]
[368856128,1751377850836,-250.0,0.000251,7]
[368856130,1751377850845,-250.0,0.000251,7]
[368856132,1751377850854,-250.0,0.000251,7]
[368856134,1751377850864,-250.0,0.000251,7]
[368856136,1751377850875,-250.0,0.000251,7]
[368856138,1751377850884,-250.0,0.000251,7]
[368856140,1751377850894,-250.0,0.000251,7]
[368856142,1751377850904,-250.0,0.000251,7]
[368856144,1751377850914,-250.0,0.000251,7]
[368856146,1751377850924,-250.0,0.000251,7]
[368856147,1751377850934,-53.94858531,0.000251,7]
[368856153,1751377850979,-196.05141469,0.000251,7]
[368856155,1751377850989,-250.0,0.000251,7]
[368856157,1751377851000,-250.0,0.000251,7]
[368856159,1751377851009,-250.0,0.000251,7]
[368856161,1751377851020,-312.2,0.000251,7]
[368856163,1751377851030,-800.0,0.00025141,2]
[368856165,1751377851040,-151.0,0.00025145,7]
[368856167,1751377851050,-151.0,0.00025145,7]
[368856169,1751377851060,-167.445084,0.00025145,7]
[368856171,1751377851070,-151.0,0.00025145,7]
[368856173,1751377851081,-151.0,0.00025145,7]
[368856175,1751377851091,-211.131602,0.00025145,7]
[368856177,1751377851100,-279.158323,0.00025145,7]
[368856179,1751377851109,-151.0,0.00025145,7]
[368856181,1751377851119,-151.0,0.00025145,7]
[368856183,1751377851128,-152.266266,0.00025145,7]
[368856184,1751377851137,-151.0,0.00025145,7]
[368856187,1751377851147,-151.0,0.00025145,7]
[368856188,1751377851157,-151.0,0.00025145,7]
[368856190,1751377851167,-151.0,0.00025145,7]
[368856192,1751377851177,-151.0,0.00025145,7]
[368856194,1751377851186,-151.0,0.00025145,7]
[368856196,1751377851195,-151.0,0.00025145,7]
[368856198,1751377851206,-151.0,0.00025145,7]
[368856200,1751377851215,-151.0,0.00025145,7]
[368856202,1751377851227,-151.0,0.00025145,7]
[368856204,1751377851236,-151.0,0.00025145,7]
[368856206,1751377851245,-151.0,0.00025145,7]
[368856208,1751377851254,-151.0,0.00025145,7]
[368856210,1751377851264,-151.0,0.00025145,7]
[368856212,1751377851273,-151.0,0.00025145,7]
[368856214,1751377851282,-151.0,0.00025145,7]
[368856216,1751377851292,-151.0,0.00025145,7]
[368856218,1751377851301,-151.0,0.00025145,7]
[368856220,1751377851311,-151.0,0.00025145,7]
[368856222,1751377851320,-288.390054,0.00025145,7]
[368856224,1751377851332,-151.344603,0.00025145,7]
[368856225,1751377851342,-151.0,0.00025145,7]
[368856227,1751377851351,-151.0,0.00025145,7]
[368856229,1751377851362,-156.537227,0.00025145,7]
[368856231,1751377851372,-151.0,0.00025145,7]
[368856234,1751377851382,-151.0,0.00025145,7]
[368856236,1751377851391,-151.0,0.00025145,7]
[368856237,1751377851401,-151.0,0.00025145,7]
[368856239,1751377851411,-296.927388,0.00025145,7]
[368856241,1751377851420,-151.0,0.00025145,7]
[368856243,1751377851430,-163.257805,0.00025145,7]
[368856246,1751377851440,-226.831649,0.00025145,7]
[368856247,1751377851449,-226.831649,0.00025145,7]
[368856249,1751377851459,-226.831649,0.00025145,7]
[368856251,1751377851468,-226.831649,0.00025145,7]
[368856253,1751377851477,-226.831649,0.00025145,7]
[368856254,1751377851487,-226.831649,0.00025145,7]
[368856256,1751377851496,-226.831649,0.00025145,7]
[368856258,1751377851505,-226.831649,0.00025145,7]
[368856260,1751377851515,-226.831649,0.00025145,7]
[368856262,1751377851524,-151.0,0.00025145,7]
[368856264,1751377851533,-226.831649,0.00025145,7]
[368856266,1751377851542,-226.831649,0.00025145,7]
[368856268,1751377851552,-151.0,0.00025145,7]
[368856270,1751377851561,-226.831648,0.00025145,7]
[368856271,1751377851570,-151.0,0.00025145,7]
[368856273,1751377851581,-151.0,0.00025145,7]
[368856275,1751377851590,-151.0,0.00025145,7]
[368856277,1751377851600,-151.0,0.00025149,7]
[368856279,1751377851609,-264.262535,0.00025149,7]
[368856281,1751377851619,-151.0,0.00025149,7]
[368856283,1751377851628,-151.0,0.00025149,7]
[368856285,1751377851636,-151.0,0.00025149,7]
[368856287,1751377851646,-151.0,0.00025149,7]
[368856289,1751377851654,-151.0,0.00025149,7]
[368856291,1751377851666,-151.0,0.00025149,7]
[368856293,1751377851675,-241.600001,0.00025149,7]
[368856295,1751377851685,-151.0,0.00025149,7]
[368856296,1751377851694,-206.669806,0.00025149,7]
[368856298,1751377851704,-151.0,0.00025149,7]
[368856300,1751377851713,-151.0,0.00025149,7]
[368856302,1751377851722,-151.0,0.00025149,7]
[368856304,1751377851732,-151.0,0.00025149,7]
[368856306,1751377851741,-151.0,0.00025149,7]
[368856308,1751377851751,-151.0,0.00025149,7]
[368856310,1751377851761,-151.0,0.00025149,7]
[368856312,1751377851770,-151.0,0.00025149,7]
[368856314,1751377851779,-151.0,0.00025149,7]
[368856316,1751377851789,-151.0,0.00025149,7]
[368856318,1751377851798,-175.899238,0.00025149,7]
[368856320,1751377851807,-151.0,0.00025149,7]
[368856322,1751377851817,-151.0,0.00025149,7]
[368856323,1751377851826,-151.0,0.00025149,7]
[368856325,1751377851838,-151.0,0.00025149,7]
[368856327,1751377851847,-151.0,0.00025149,7]
[368856329,1751377851856,-151.0,0.00025149,7]
[368856331,1751377851866,-151.0,0.00025149,7]
[368856333,1751377851875,-151.0,0.00025149,7]
[368856335,1751377851885,-151.0,0.00025149,7]
[368856337,1751377851894,-151.0,0.00025149,7]
[368856339,1751377851903,-151.0,0.00025149,7]
[368856341,1751377851913,-151.0,0.00025149,7]
[368856343,1751377851922,-151.0,0.00025149,7]
[368856345,1751377851932,-151.0,0.00025149,7]
[368856347,1751377851941,-151.0,0.00025149,7]
[368856349,1751377851951,-151.0,0.00025149,7]
[368856351,1751377851960,-151.0,0.00025149,7]
[368856352,1751377851970,-151.0,0.00025149,7]
[368856354,1751377851980,-151.0,0.00025149,7]
[368856356,1751377851990,-151.0,0.00025149,7]
[368856358,1751377851999,-151.0,0.00025149,7]
[368856360,1751377852008,-169.770874,0.00025149,7]
[368856362,1751377852018,-151.0,0.00025149,7]
[368856364,1751377852028,-177.227092,0.00025149,7]
[368856366,1751377852038,-266.991734,0.00025149,7]
[368856368,1751377852048,-1500.0,0.00025149,14]
[368856370,1751377852057,-1500.0,0.00025149,14]
[368856372,1751377852066,-1500.0,0.00025149,14]
[368856374,1751377852074,-1500.0,0.00025149,14]
[368856376,1751377852086,-1500.0,0.00025149,14]
[368856378,1751377852094,-1500.0,0.00025149,14]
[368856380,1751377852104,-1500.0,0.00025149,14]
[368856382,1751377852114,-1500.0,0.00025149,14]
[368856384,1751377852123,-1500.0,0.00025149,14]
[368856386,1751377852133,-1500.0,0.00025149,14]
[368856388,1751377852142,-1500.0,0.00025149,14]
[368856390,1751377852151,-1500.0,0.00025149,14]
[368856392,1751377852161,-1500.0,0.00025149,14]
[368856394,1751377852170,-1500.0,0.00025149,14]
[368856396,1751377852179,-1500.0,0.00025149,14]
[368856398,1751377852189,-1500.0,0.00025149,14]
[368856400,1751377852199,-1500.0,0.00025149,14]
[368856402,1751377852209,-151.0,0.00025149,7]
[368856404,1751377852219,-1500.0,0.00025149,14]
[368856405,1751377852230,-1500.0,0.00025149,14]
[368856407,1751377852239,-1500.0,0.00025149,14]
[368856409,1751377852249,-1500.0,0.00025149,14]
[368856411,1751377852258,-1500.0,0.00025149,14]
[368856413,1751377852267,-1500.0,0.00025149,14]
[368856415,1751377852276,-1500.0,0.00025149,14]
[368856417,1751377852286,-611.01490794,0.00025149,14]
[368856420,1751377852301,-888.98509206,0.00025149,14]